bitfinex/quotes_ETHUSD_20220118
["timestamp","ask_amount","ask_price","bid_price","bid_amount"]
[1642529392262,0.00397897,3096.3,3095.9,0.80733]
[1642529392506,1.55107807,3096.4,3096.1,5.85]
[1642529392704,1.55107807,3096.4,3096.2,0.595]
[1642529392906,3.10214378,3096.8,3096.3,5.86273849]
[1642529393107,0.129,3097.6,3096.4,1.595]
[1642529393305,0.129,3097.6,3096.4,1.466]
[1642529393506,0.129,3097.6,3096.7,0.8072076]
[1642529393705,0.129,3097.6,3096.8,0.466]
[1642529393905,0.129,3097.6,3096.9,0.466]
[1642529394308,0.079,3097.6,3096.9,0.766]
[1642529394906,0.129,3097.8,3096.9,0.766]
[1642529395306,1.3563656,3097.6,3096.9,0.766]
[1642529395507,0.129,3097.5,3096.9,0.766]
[1642529395706,0.13582108,3097.5,3096.9,0.766]
[1642529395908,1.26981548,3097.1,3096.9,0.466]
[1642529396109,0.129,3097.0,3096.9,0.02893987]
[1642529396359,1.2918485,3096.2,3096.0,1.00170527]
[1642529396559,1.2918485,3096.2,3096.1,0.466]
[1642529396761,0.00341054,3096.9,3096.1,0.46713685]
[1642529396957,0.129,3096.8,3096.6,2.20249788]
[1642529397157,0.13184211,3096.8,3096.1,0.46713685]
[1642529397359,0.00227369,3096.7,3096.1,0.46713685]
[1642529397756,1.23882125,3096.4,3096.1,0.46713685]
[1642529397958,0.00170527,3096.6,3096.1,0.46713685]
[1642529397959,0.00170527,3096.6,3096.1,1.27451685]
[1642529398156,0.00625265,3097.4,3096.2,1.64742864]
[1642529398357,0.00113684,3096.5,3096.2,2.41342864]
[1642529398558,0.129,3097.3,3096.2,3.41342864]
[1642529398559,0.00568423,3097.3,3096.2,3.41342864]
[1642529398758,0.129,3097.2,3096.2,5.83530204]
[1642529398960,0.129,3097.2,3096.3,3.1655947]
[1642529398961,1.18355812,3097.2,3096.3,3.1655947]
[1642529399164,0.00454738,3097.1,3096.4,2.61452]
[1642529399365,0.00454738,3097.1,3096.6,0.01043289]
[1642529399559,0.00397896,3097.0,3096.7,0.466]
[1642529399858,0.00341054,3096.9,3096.7,0.466]
[1642529400105,1.24260312,3096.8,3096.7,0.766]
[1642529400303,1.24544523,3096.8,3096.7,0.466]
[1642529400503,0.00284211,3096.8,3096.7,0.466]
[1642529401104,0.00284211,3096.8,3096.5,0.01905252]
[1642529401507,0.00227369,3096.7,3096.5,0.01905252]
[1642529401708,6.69290906,3096.6,3096.1,0.00113685]
[1642529401913,4.4,3096.4,3095.7,0.08654181]
[1642529402107,0.129,3096.3,3095.7,0.08654181]
[1642529402307,0.00113685,3096.3,3095.8,0.00170527]
[1642529402508,0.129,3096.4,3095.8,0.00170527]
[1642529402509,1.38141468,3096.1,3095.8,0.00170527]
[1642529402707,1.38141468,3096.1,3095.6,0.00284212]
[1642529402708,0.1292,3096.0,3095.6,0.00284212]
[1642529402906,0.1292,3096.0,3095.1,0.00568423]
[1642529403108,3.57503239,3096.0,3095.1,0.00568423]
[1642529403608,1.28497533,3095.2,3095.1,0.00568423]
[1642529404268,0.1292,3096.0,3095.1,0.00568423]
[1642529404479,0.1292,3096.1,3095.1,0.00568423]
[1642529404870,0.1292,3096.1,3095.2,0.466]
[1642529405072,3.8328,3096.2,3095.2,0.766]
[1642529405270,3.8328,3096.2,3096.0,2.27235437]
[1642529405471,1.45188675,3096.3,3096.0,2.27235437]
[1642529405671,1.45188675,3096.3,3095.3,0.00454739]
[1642529405672,1.45188675,3096.3,3095.3,1.00454739]
[1642529405873,1.165589,3095.8,3095.4,0.3]
[1642529406074,1.165589,3095.8,3095.4,0.00397896]
[1642529406272,1.165589,3095.8,3095.5,0.00341054]
[1642529406477,1.165589,3095.8,3095.4,0.00397896]
[1642529406676,1.165589,3095.8,3095.3,0.00454739]
[1642529407080,1.165589,3095.8,3095.5,1.8253389]
[1642529407277,0.1292,3095.7,3095.0,0.95454739]
[1642529407505,0.1314737,3095.7,3094.9,1.4484]
[1642529407807,0.00170527,3095.6,3095.1,0.16636963]
[1642529408007,0.00170527,3095.6,3095.2,2.2103688]
[1642529408305,0.1292,3096.6,3095.2,2.2103688]
[1642529408306,0.00113685,3095.5,3095.2,2.2103688]
[1642529408506,0.00113685,3095.5,3095.2,2.5103688]
[1642529408709,0.1292,3096.6,3095.2,2.5103688]
[1642529408710,0.00682108,3096.5,3095.2,2.5103688]
[1642529408907,0.00682108,3096.5,3095.3,2.0934029]
[1642529408908,0.1292,3096.4,3095.3,2.0934029]
[1642529409107,1.16503143,3095.5,3095.3,2.0934029]
[1642529410008,1.16503143,3095.5,3095.3,2.0860959]
[1642529410210,0.1292,3096.2,3095.3,2.0860959]
[1642529410413,0.00568424,3096.3,3095.4,0.1292]
[1642529410611,0.00454739,3096.1,3095.5,0.466]
[1642529410813,0.06641536,3097.0,3095.7,4.55]
[1642529411010,0.06641536,3097.0,3095.8,0.466]
[1642529411256,0.00397897,3096.9,3095.8,1.46827369]
[1642529411461,0.129,3096.8,3095.9,2.30581099]
[1642529411764,0.00284212,3096.7,3096.1,0.03327761]
[1642529411964,0.00284212,3096.7,3096.3,0.01560449]
[1642529412167,7.579,3097.2,3096.4,0.466]
[1642529412168,7.45,3097.2,3096.4,0.466]
[1642529412363,3.9457,3097.3,3096.6,0.00713652]
[1642529412562,3.9457,3097.3,3096.7,1.40211]
[1642529412563,0.00284211,3097.1,3096.7,1.40211]
[1642529412761,0.00284211,3097.1,3096.9,0.01802014]
[1642529412961,0.129,3098.1,3097.1,0.00543219]
[1642529413164,0.129,3098.1,3097.2,0.595]
[1642529413463,0.129,3098.1,3097.3,0.466]
[1642529413464,0.00795793,3098.0,3097.3,0.466]
[1642529413661,1.44907489,3097.6,3097.5,2.02964771]
[1642529413863,1.44907489,3097.6,3097.3,0.766]
[1642529414062,1.45475912,3097.6,3097.3,0.766]
[1642529414261,0.00511581,3097.5,3097.3,0.766]
[1642529414460,1.12899334,3097.4,3097.3,2.57312]
[1642529414662,1.13354072,3097.4,3097.3,2.57312]
[1642529414868,1.13354072,3097.4,3097.3,5.76630045]
[1642529415305,3.9977,3098.2,3097.4,5.85]
[1642529415507,3.9977,3098.2,3097.6,0.80696]
[1642529415704,0.00397897,3098.1,3097.7,0.47235338]
[1642529415904,0.129,3099.1,3097.9,1.61356]
[1642529416106,3.9865,3099.2,3098.1,0.01510561]
[1642529416305,0.00454739,3098.9,3098.2,0.466]
[1642529416508,0.00454739,3098.9,3098.2,1.766]
[1642529416707,0.00397896,3098.8,3098.2,1.766]
[1642529416910,0.00397896,3098.8,3098.4,0.80674]
[1642529417108,0.00341054,3098.7,3098.5,0.129]
[1642529417313,1.67097,3100.0,3098.6,5.85]
[1642529417515,1.67097,3100.0,3098.7,5.44868216]
[1642529417516,1.54197,3100.0,3098.7,5.44868216]
[1642529417712,0.00227369,3099.1,3098.8,0.466]
[1642529417910,1.54197,3100.0,3099.0,5.85]
[1642529418111,1.54197,3100.0,3099.3,1.61301]
[1642529418310,1.13674313,3099.8,3099.4,0.595]
[1642529418511,1.13674313,3099.8,3099.4,3.00876807]
[1642529418758,1.13674313,3099.8,3099.0,0.129]
[1642529418759,3.0,3099.5,3099.0,0.129]
[1642529418957,1.08545576,3099.3,3098.9,0.00113684]
[1642529419158,0.129,3099.2,3098.9,0.27353684]
[1642529419358,0.129,3099.2,3098.6,1.00284211]
[1642529419555,1.4477622,3098.8,3098.6,0.00284211]
[1642529419756,1.4477622,3098.8,3098.7,0.00227369]
[1642529419956,1.4477622,3098.8,3098.6,0.00284211]
[1642529420962,0.129,3099.3,3098.6,0.00284211]
[1642529421161,0.129,3099.3,3098.6,0.80966211]
[1642529421361,0.129,3099.3,3098.6,0.00284211]
[1642529421564,0.129,3099.3,3098.7,0.00227369]
[1642529421763,0.129,3099.3,3097.9,0.13819997]
[1642529421764,0.01251394,3099.2,3098.6,0.00284211]
[1642529421965,0.129,3099.1,3098.5,0.00341054]
[1642529422162,0.129,3099.1,3098.2,0.00511581]
[1642529422378,1.52196589,3098.4,3098.1,0.00568423]
[1642529422604,0.129,3099.1,3098.1,0.00568423]
[1642529423204,0.129,3099.1,3098.1,0.81260433]
[1642529423403,1.40868225,3098.9,3098.2,0.3]
[1642529423605,1.40868225,3098.9,3098.3,2.21292188]
[1642529423804,1.40868225,3098.9,3098.3,0.00454738]
[1642529424008,1.40868225,3098.9,3098.4,0.00397896]
[1642529424205,1.40868225,3098.9,3098.3,0.30454738]
[1642529424405,1.40868225,3098.9,3098.1,0.93595]
[1642529424406,1.40868225,3098.9,3098.4,0.00397896]
[1642529424605,1.40868225,3098.9,3098.4,0.30397896]
[1642529424805,1.40868225,3098.9,3098.4,0.3]
[1642529425007,0.129,3099.1,3098.5,2.87756148]
[1642529425207,0.129,3099.3,3098.6,1.19381]
[1642529425512,0.00113685,3099.3,3098.7,0.00227369]
[1642529425706,0.129,3099.2,3098.7,0.00227369]
[1642529426107,1.38241769,3099.1,3098.2,0.00511581]
[1642529426360,0.129,3099.0,3098.2,0.00511581]
[1642529427364,0.129,3099.0,3098.3,0.8068133]
[1642529427565,1.38241769,3099.1,3098.5,0.8067]
[1642529427763,1.38241769,3099.1,3098.6,0.129]
[1642529427964,1.36667744,3099.1,3098.6,0.13184211]
[1642529428167,1.36667744,3099.1,3098.7,0.00227369]
[1642529428363,0.00113685,3099.3,3098.7,0.00227369]
[1642529428567,0.00113685,3099.3,3098.8,0.80672]
[1642529428766,0.00113685,3099.3,3098.9,3.75864385]
[1642529428965,0.00113685,3099.3,3098.9,4.63478069]
[1642529429167,0.00113685,3099.3,3099.1,1.73666436]
[1642529429366,0.00113685,3099.3,3099.2,0.129]
[1642529429565,0.00113685,3099.3,3099.2,4.91083937]
[1642529429767,3.8688,3099.9,3099.2,4.10430937]
[1642529430021,0.129,3099.8,3099.2,1.129]
[1642529430220,0.13184212,3099.8,3099.2,0.129]
[1642529430420,0.00227369,3099.7,3099.2,0.129]
[1642529430619,0.129,3099.6,3099.2,0.129]
[1642529430825,0.00170527,3099.6,3099.2,0.129]
[1642529431023,1.11382971,3099.4,3099.2,0.06187555]
[1642529431826,0.13933438,3099.7,3099.2,0.06187555]
[1642529432028,0.13933438,3099.7,3098.9,0.00113684]
[1642529432029,0.00227369,3099.7,3098.9,0.00113684]
[1642529432228,0.00170527,3099.6,3098.9,1.61445684]
[1642529432429,0.00170527,3099.6,3098.9,1.61332]
[1642529432628,0.00113685,3099.5,3099.0,0.00170527]
[1642529432826,0.00113685,3099.5,3099.1,0.80671]
[1642529433026,1.39641428,3099.4,3099.1,1.10671]
[1642529433228,0.13933405,3099.7,3099.1,1.10671]
[1642529433434,0.00170527,3099.6,3099.3,1.61305]
[1642529433628,0.00170527,3099.6,3099.3,1.91305]
[1642529433858,0.00113685,3099.5,3099.4,0.80652]
[1642529434059,0.00113685,3099.5,3099.4,1.80652]
[1642529434259,0.00113685,3099.5,3099.4,3.80002737]
[1642529434456,0.00113685,3099.5,3099.4,1.80652]
[1642529434857,0.00113685,3099.5,3099.4,1.0]
[1642529435058,0.00113685,3099.5,3099.3,2.04205]
[1642529435664,1.30089448,3099.5,3099.3,2.04205]
[1642529435861,1.30089448,3099.5,3099.3,1.74205]
[1642529436068,1.30089448,3099.5,3099.3,0.129]
[1642529436263,5.129,3099.4,3099.3,0.129]
[1642529436462,0.129,3099.4,3099.3,0.129]
[1642529436662,0.079,3099.4,3099.3,0.129]
[1642529437065,2.18586626,3099.4,3099.3,0.129]
[1642529437505,0.079,3099.4,3099.3,0.129]
[1642529437707,1.30089448,3099.5,3099.3,0.129]
[1642529439510,1.74468949,3099.4,3099.3,0.129]
[1642529439710,1.74468949,3099.4,3098.9,1.8658232]
[1642529439910,1.74696318,3099.4,3099.0,1.0]
[1642529440110,0.00170527,3099.3,3098.9,2.8658232]
[1642529440511,0.00113685,3099.2,3098.9,1.5658232]
[1642529440712,0.129,3099.1,3098.7,0.03573003]
[1642529440913,7.06783025,3099.0,3098.5,0.11473003]
[1642529441116,0.01403857,3098.8,3098.5,0.11473003]
[1642529441365,1.38946807,3098.7,3098.5,0.11473003]
[1642529441568,1.26046807,3098.7,3098.5,0.11473003]
[1642529441765,1.16283293,3098.7,3098.5,0.11473003]
[1642529444569,1.16283293,3098.7,3097.4,1.1866]
[1642529444570,5.829,3098.6,3097.4,1.1866]
[1642529444767,5.93005244,3098.6,3097.4,1.1866]
[1642529445012,5.93005244,3098.6,3097.5,0.00852635]
[1642529445611,1.29545719,3097.6,3097.5,0.00852635]
[1642529445813,0.01210155,3098.8,3097.5,1.62275635]
[1642529446012,0.13709965,3098.5,3097.6,3.10936171]
[1642529446217,0.13709965,3098.5,3097.7,1.0]
[1642529446414,0.13709965,3098.5,3097.7,1.0073895]
[1642529446614,0.13709965,3098.5,3097.8,0.00682108]
[1642529446915,1.34628328,3098.2,3097.8,0.81383308]
[1642529447119,1.34532828,3098.2,3097.9,0.80702]
[1642529447315,1.34532828,3098.2,3097.9,0.00625266]
[1642529447516,1.34532828,3098.2,3098.0,0.00568423]
[1642529447517,1.64532828,3098.2,3098.0,0.00568423]
[1642529447718,1.64532828,3098.2,3097.9,0.00625266]
[1642529447916,0.129,3098.1,3097.9,0.00625266]
[1642529448770,1.34532828,3098.2,3097.9,0.00625266]
[1642529449763,1.34532828,3098.2,3097.9,0.81337266]
[1642529449964,1.34532828,3098.2,3097.9,0.00625266]
[1642529450163,1.34532828,3098.2,3098.0,0.00568423]
[1642529450364,1.34532828,3098.2,3097.8,0.00682108]
[1642529450563,1.29532828,3098.2,3097.8,0.00682108]
[1642529450764,2.21106681,3097.9,3097.8,0.00682108]
[1642529450963,1.41449587,3097.9,3097.8,0.00682108]
[1642529451369,1.29532828,3098.2,3097.8,0.00682108]
[1642529452171,5.85,3098.1,3097.4,1.61434]
[1642529452371,5.85,3098.1,3097.2,0.129]
[1642529452372,6.03114195,3098.1,3097.2,0.129]
[1642529452615,0.00113685,3098.0,3097.5,0.00170527]
[1642529452812,0.14431526,3097.9,3097.5,0.00170527]
[1642529453010,18.949,3097.9,3097.5,0.00170527]
[1642529453410,1.43737957,3097.7,3097.5,0.00170527]
[1642529453709,1.43737957,3097.7,3097.2,5.27e-06]
[1642529453710,4.75,3097.5,3097.2,5.27e-06]
[1642529453915,0.129,3097.4,3097.3,0.00113685]
[1642529454712,0.129,3097.6,3097.3,0.00113685]
[1642529454908,0.93648,3097.6,3097.3,0.00113685]
[1642529455109,0.3,3097.5,3097.3,0.00113685]
[1642529455309,0.129,3097.4,3097.3,0.00113685]
[1642529455509,0.26611558,3097.4,3097.3,0.00113685]
[1642529456369,0.21611558,3097.4,3097.3,0.00113685]
[1642529456771,0.2277942,3097.4,3097.3,0.00113685]
[1642529457371,0.1487942,3097.4,3097.3,0.00113685]
[1642529457769,2.6987942,3097.4,3097.3,0.00113685]
[1642529458171,0.1487942,3097.4,3097.3,0.00113685]
[1642529459576,5.9987942,3097.4,3097.3,0.00113685]
[1642529460614,24.8187942,3097.4,3097.3,0.00113685]
[1642529461823,25.81182658,3097.4,3097.3,0.00113685]
[1642529462219,25.94082658,3097.4,3097.3,0.00113685]
[1642529462421,0.80765,3097.1,3096.2,0.00738951]
[1642529462621,0.129,3097.0,3096.2,0.00738951]
[1642529462820,2.07970899,3096.9,3096.2,0.00738951]
[1642529463522,1.28881285,3096.2,3096.1,0.00795793]
[1642529463958,1.28881285,3096.2,3095.9,1.74422]
[1642529463959,1.28881285,3096.2,3096.0,0.00852635]
[1642529464368,1.58881285,3096.2,3096.0,0.00852635]
[1642529464560,1.28881285,3096.2,3096.0,0.00852635]
[1642529464759,1.28881285,3096.2,3096.1,2.71679748]
[1642529464960,6.18881285,3096.2,3096.1,2.64089748]
[1642529465160,1.58881285,3096.2,3096.1,2.64885541]
[1642529465359,3.85,3096.1,3095.2,3.03601801]
[1642529465563,3.85,3096.1,3095.1,1.58654649]
[1642529465564,5.85,3095.9,3095.1,1.58654649]
[1642529465862,2.2569114,3095.7,3095.3,0.00454739]
[1642529466064,4.5,3095.5,3095.3,0.00454739]
[1642529466264,0.02071373,3095.3,3094.6,4.63938262]
[1642529466463,1.33998746,3095.1,3094.7,0.00795793]
[1642529466663,0.1292,3095.0,3094.7,0.00795793]
[1642529467264,2.24238494,3094.9,3094.7,0.00795793]
[1642529467517,0.1292,3095.5,3094.7,0.00795793]
[1642529467716,3.8907,3095.9,3094.7,0.00795793]
[1642529467916,3.7615,3095.9,3095.0,0.80775]
[1642529468118,0.00284212,3095.8,3095.0,0.80775]
[1642529468317,0.00284212,3095.8,3095.3,1.13867002]
[1642529468516,0.0022737,3095.7,3095.3,3.39647276]
[1642529468716,0.0022737,3095.7,3095.3,1.46622921]
[1642529468917,0.00170527,3095.6,3095.4,1.80753]
[1642529469421,3.8832,3096.1,3095.4,0.80753]
[1642529469422,0.00113685,3095.5,3095.4,0.80753]
[1642529469616,1.44923206,3095.5,3095.4,0.93673]
[1642529469817,1.44923206,3095.5,3095.4,0.1292]
[1642529470219,3.5570514,3095.5,3095.4,0.1292]
[1642529470417,1.44923206,3095.5,3095.4,0.1292]
[1642529472084,3.19400764,3095.5,3095.4,0.1292]
[1642529472282,3.19400764,3095.5,3095.1,0.00113684]
[1642529472482,1.44923206,3095.5,3095.1,0.00113684]
[1642529472679,1.44923206,3095.5,3095.0,0.80785]
[1642529472881,0.00113685,3095.5,3095.0,0.80785]
[1642529473080,0.00113685,3095.5,3095.1,0.00113684]
[1642529473482,0.00113685,3095.5,3095.2,1.92078494]
[1642529473682,0.00113685,3095.5,3095.1,1.61662684]
[1642529473902,0.00113685,3095.5,3095.1,1.00113684]
[1642529474081,0.00113685,3095.5,3095.1,0.00113684]
[1642529474684,1.4841575,3095.4,3095.1,0.00113684]
[1642529476314,0.1292,3095.3,3095.1,0.00113684]
[1642529476519,0.07185885,3095.3,3095.1,0.00113684]
[1642529476817,0.07185885,3095.3,3094.7,0.1292]
[1642529476818,0.07185885,3095.3,3094.8,0.00284212]
[1642529477016,3.39373259,3095.3,3094.8,0.00284212]
[1642529477225,2.28150549,3095.2,3094.8,0.00284212]
[1642529477419,0.1292,3095.1,3094.8,0.00284212]
[1642529478516,1.82828289,3094.2,3093.9,0.00795793]
[1642529478760,1.53338771,3094.2,3093.9,0.00795793]
[1642529479561,0.1292,3095.1,3093.9,0.00795793]
[1642529479766,0.1292,3095.1,3094.4,1.86053668]
[1642529479965,0.1292,3095.1,3093.9,1.62409793]
[1642529480165,0.1292,3095.1,3094.5,0.00454739]
[1642529480362,0.1292,3095.1,3094.0,0.0073895]
[1642529480563,1.35415668,3094.8,3094.4,0.80803]
[1642529480963,0.1292,3095.1,3094.5,0.00454739]
[1642529481566,0.1292,3095.1,3094.6,0.80796]
[1642529481768,4.0399,3095.2,3094.6,0.80796]
[1642529481968,4.0399,3095.2,3094.7,0.00341054]
[1642529482524,0.1292,3095.1,3094.6,0.00397896]
[1642529483512,3.7399,3095.2,3094.6,0.81182896]
[1642529483811,3.7399,3095.2,3094.9,0.0185819]
[1642529484012,1.23629256,3095.3,3094.9,0.0185819]
[1642529484215,1.23629256,3095.3,3095.0,0.00170527]
[1642529484615,0.1292,3095.2,3094.9,0.00227369]
[1642529484815,1.23629256,3095.3,3094.8,0.00284212]
[1642529485019,0.1292,3095.1,3094.8,0.00284212]
[1642529485217,1.53629256,3095.3,3094.6,0.00397896]
[1642529485218,0.1292,3095.2,3094.6,0.00397896]
[1642529485416,3.11183448,3095.1,3094.3,0.00568423]
[1642529485615,0.02744983,3094.9,3094.2,0.00625266]
[1642529485815,3.65715003,3095.0,3093.9,0.00795793]
[1642529485816,2.23796001,3094.1,3093.9,0.00795793]
[1642529486016,1.16967882,3094.0,3093.8,0.00852635]
[1642529486265,7.78,3094.7,3093.8,0.00852635]
[1642529486467,4.1536,3094.7,3093.5,0.01023162]
[1642529486665,0.1292,3094.6,3093.5,0.01023162]
[1642529487465,1.24973171,3094.1,3093.4,0.81908004]
[1642529487965,1.24973171,3094.1,3093.5,0.01023162]
[1642529488368,1.19973171,3094.1,3093.4,0.01080004]
[1642529488568,0.1292,3094.6,3093.6,0.80824]
[1642529488768,3.8536,3094.7,3093.7,0.1292]
[1642529488967,3.8536,3094.7,3093.7,0.13829477]
[1642529489166,3.8536,3094.7,3094.2,1.93639888]
[1642529489367,0.1292,3095.0,3094.2,1.93639888]
[1642529489567,3.8128,3095.0,3094.3,0.00568423]
[1642529489768,1.54985864,3094.5,3094.3,0.00568423]
[1642529490020,1.54985864,3094.5,3093.9,1.61613]
[1642529490215,1.54985864,3094.5,3093.9,1.62408793]
[1642529490413,2.24324626,3095.3,3094.0,2.5573895]
[1642529490611,2.24324626,3095.3,3094.0,0.0073895]
[1642529490810,2.23271451,3094.4,3094.1,0.00682108]
[1642529491012,1.19442819,3094.3,3094.0,0.0073895]
[1642529491417,1.32362819,3094.3,3093.8,0.00852635]
[1642529492215,1.32362819,3094.3,3093.6,0.0096632]
[1642529492419,1.97931316,3094.2,3093.4,0.01080004]
[1642529492618,0.1292,3094.1,3093.4,0.01080004]
[1642529492920,0.1292,3094.1,3093.3,0.09000004]
[1642529492921,5.85,3094.0,3093.3,0.09000004]
[1642529493117,0.1292,3093.9,3093.3,0.09000004]
[1642529493416,0.00227369,3093.8,3093.3,0.09000004]
[1642529493616,0.00227369,3093.8,3093.2,1.61655]
[1642529493866,0.00170527,3093.7,3093.2,1.61655]
[1642529494266,1.71062957,3093.5,3093.2,1.61655]
[1642529494567,1.71062957,3093.5,3092.9,0.13819997]
[1642529494769,1.1364528,3093.4,3092.9,0.13819997]
[1642529494968,1.1364528,3093.4,3093.0,0.0022737]
[1642529495169,1.1364528,3093.4,3093.1,0.80839]
[1642529495575,1.1364528,3093.4,3093.2,0.00113685]
[1642529495971,0.1293,3094.1,3093.2,2.1691517]
[1642529496174,0.1293,3094.1,3093.3,0.05631385]
[1642529496374,0.00341054,3094.0,3093.5,0.80812]
[1642529496776,0.00284211,3093.9,3093.5,1.49512]
[1642529496975,0.00284211,3093.9,3093.6,0.1292]
[1642529497175,0.1292,3095.4,3093.8,5.85]
[1642529497381,3.8767,3095.4,3094.0,0.05392331]
[1642529497624,0.1292,3095.7,3094.5,1.61559]
[1642529497822,0.1292,3096.0,3094.6,4.2645917]
[1642529498022,0.01080005,3095.7,3094.6,4.5645917]
[1642529498228,1.32758514,3095.2,3094.7,1.0]
[1642529498423,1.32758514,3095.2,3094.9,1.6155155]
[1642529498624,0.00738951,3095.1,3095.0,0.93694]
[1642529499025,0.13658951,3095.1,3095.0,0.1292]
[1642529499825,2.28945688,3095.1,3095.0,0.1292]
[1642529501469,25.4281926,3095.0,3094.0,1.2344]
[1642529501670,0.14834993,3094.9,3093.8,3.9129]
[1642529501869,0.80825,3094.8,3093.6,0.1292]
[1642529502072,2.18281878,3094.2,3093.6,0.1292]
[1642529502367,0.81393423,3094.8,3093.6,0.1292]
[1642529502368,0.01752609,3094.1,3093.6,0.1292]
[1642529502567,0.00170527,3094.1,3093.6,0.1292]
[1642529502769,0.00113685,3094.0,3093.5,2.38396833]
[1642529502970,0.08033685,3094.9,3093.6,5.85]
[1642529503170,0.08033685,3094.9,3093.6,8.9553831]
[1642529503375,0.00341054,3094.6,3093.7,1.00170527]
[1642529503569,0.1292,3094.5,3094.0,1.74534659]
[1642529503769,0.13204211,3094.5,3094.0,1.74534659]
[1642529503971,1.27500466,3094.4,3094.0,1.74534659]
[1642529504173,0.00227369,3094.4,3094.1,0.80808]
[1642529504371,0.00170527,3094.3,3094.1,0.80808]
[1642529504576,0.00170527,3094.3,3094.1,2.10808]
[1642529504772,0.1292,3095.5,3095.2,1.74559987]
[1642529505018,0.1292,3095.6,3095.0,0.80784]
[1642529505218,1.34506085,3095.5,3095.0,0.80784]
[1642529506123,1.34506085,3095.5,3094.4,1.3524]
[1642529506124,1.93496204,3095.4,3094.4,1.3524]
[1642529506317,1.93496204,3095.4,3094.2,1.52907605]
[1642529506521,0.0073895,3095.3,3094.2,0.39987605]
[1642529506824,1.5202362,3094.3,3094.0,1.1763]
[1642529507026,2.5261362,3094.3,3093.9,0.1292]
[1642529507322,0.13033684,3094.2,3093.9,0.1292]
[1642529510667,3.52735957,3094.2,3093.9,0.1292]
[1642529510868,0.13033684,3094.2,3093.9,0.1292]
[1642529511567,2.55549944,3094.2,3093.9,0.1292]
[1642529511970,0.3,3094.1,3093.9,0.1292]
[1642529512167,4.1292,3094.0,3093.9,0.1292]
[1642529512612,3.2584,3094.0,3093.9,0.1292]
[1642529512914,0.1292,3094.0,3093.9,0.1292]
[1642529515011,0.1292,3094.1,3093.9,0.1292]
[1642529515214,0.00113684,3094.2,3093.8,0.00113685]
[1642529515615,0.00113684,3094.2,3093.9,1.1952]
[1642529515814,0.00113684,3094.2,3093.9,2.003226]
[1642529516018,0.00113684,3094.2,3094.0,0.1292]
[1642529516272,0.00113684,3094.2,3093.4,0.5162]
[1642529516474,0.00113684,3094.2,3093.4,0.387]
[1642529516667,0.00113684,3094.2,3093.5,0.00284212]
[1642529516668,0.80839,3094.1,3093.5,0.00284212]
[1642529516869,0.1292,3094.0,3093.5,0.00284212]
[1642529517069,1.43092436,3093.9,3093.2,0.00454739]
[1642529517667,1.81299401,3093.8,3093.2,0.00454739]
[1642529517969,1.4642256,3093.3,3093.2,0.00454739]
[1642529518167,3.3722573,3093.3,3093.2,0.00454739]
[1642529518367,0.4292,3094.0,3093.2,0.00454739]
[1642529518568,0.4292,3094.0,3093.3,0.80835]
[1642529518768,0.1292,3094.0,3093.3,0.80835]
[1642529518968,0.1292,3094.0,3093.4,0.00341054]
[1642529519171,0.1292,3094.1,3093.4,0.00341054]
[1642529519366,1.53743861,3093.5,3093.4,0.00341054]
[1642529519568,3.48665671,3093.5,3093.4,0.00341054]
[1642529519770,0.1292,3094.1,3093.4,0.00341054]
[1642529520012,0.1292,3094.1,3093.5,0.80831]
[1642529520415,0.00113684,3094.2,3093.6,0.1314737]
[1642529520815,1.43449801,3093.8,3093.7,0.00170527]
[1642529521015,1.43449801,3093.8,3093.7,0.80984527]
[1642529521421,1.43449801,3093.8,3093.7,1.10984527]
[1642529522320,0.00113684,3094.2,3093.8,0.80814]
[1642529523220,0.00113684,3094.2,3093.9,1.8326714]
[1642529523421,1.10693542,3094.0,3093.9,3.4487714]
[1642529526374,1.10693542,3094.0,3093.9,1.8326714]
[1642529526571,1.23613542,3094.0,3093.9,1.8326714]
[1642529526773,1.10693542,3094.0,3093.9,1.8326714]
[1642529527181,1.10693542,3094.0,3093.8,1.8326714]
[1642529527612,0.00113684,3094.2,3093.8,1.8326714]
[1642529528218,0.00113684,3094.2,3093.8,2.81135]
[1642529528416,0.00113684,3094.2,3093.9,2.42388]
[1642529528616,0.00113684,3094.2,3094.0,0.387]
[1642529529520,0.00113684,3094.2,3094.1,4.5579]
[1642529529724,0.00113684,3094.2,3094.1,0.8079]
[1642529529917,0.00113684,3094.2,3094.1,1.1949]
[1642529530717,0.00113684,3094.2,3094.1,3.0275714]
[1642529531116,0.00113684,3094.2,3094.1,4.8354789]
[1642529532110,0.1292,3095.0,3094.2,5.85]
[1642529532318,0.1292,3095.0,3094.5,0.80787]
[1642529532511,0.00397897,3094.9,3094.5,0.80787]
[1642529532915,0.00341054,3094.8,3094.5,0.80787]
[1642529533215,0.00284212,3094.7,3094.6,1.8326714]
[1642529533413,0.00284212,3094.7,3094.6,3.8353314]
[1642529533614,0.1292,3095.5,3094.7,5.85]
[1642529533815,3.6963,3095.7,3094.8,0.5162]
[1642529534015,0.00170527,3095.0,3094.8,1.5162]
[1642529534214,0.00170527,3095.0,3094.8,1.8162]
[1642529534418,0.00113685,3094.9,3094.8,3.43171]
[1642529534823,0.00113685,3094.9,3094.8,5.04717]
[1642529535521,1.13630394,3095.1,3094.9,5.85]
[1642529535722,0.1292,3096.0,3095.0,7.51989234]
[1642529535923,0.1292,3096.0,3095.3,1.61534]
[1642529536123,0.00568423,3095.9,3095.3,1.61534]
[1642529536325,0.00568423,3095.9,3095.4,1.61533]
[1642529536522,0.13431581,3095.8,3095.4,1.61533]
[1642529536822,2.18278975,3096.3,3095.5,1.61529]
[1642529536823,0.00454739,3095.7,3095.5,1.61529]
[1642529537025,1.42631861,3095.7,3095.5,1.61529]
[1642529537225,0.00397896,3095.6,3095.5,1.61529]
[1642529539982,0.00397896,3095.6,3095.5,0.80767]
[1642529540183,0.00397896,3095.6,3095.1,1.74477]
[1642529540382,0.00397896,3095.6,3095.1,1.61557]
[1642529540383,0.1292,3095.5,3095.1,1.61557]
[1642529540581,0.13261054,3095.5,3095.1,1.61557]
[1642529540782,0.00284212,3095.4,3095.1,1.61557]
[1642529541285,0.00227369,3095.3,3095.1,1.61557]
[1642529541685,0.00170527,3095.2,3095.1,1.61557]
[1642529542287,1.48884375,3095.2,3095.1,1.61557]